bitfinex/quotes_ETHUSD_20220218
["timestamp","ask_amount","ask_price","bid_price","bid_amount"]
[1645183424060,1.0,2899.3,2898.7,0.00418242]
[1645183424261,0.797,2899.4,2898.7,0.00418242]
[1645183424262,1.797,2899.4,2898.7,0.00418242]
[1645183424463,0.797,2899.4,2898.7,0.00418242]
[1645183424663,0.797,2899.4,2898.4,3.77524517]
[1645183424863,0.797,2899.4,2898.9,0.00418232]
[1645183425561,1.9687658,2899.4,2898.9,0.00418232]
[1645183425761,1.9687658,2899.4,2898.4,3.77524517]
[1645183425962,1.9687658,2899.4,2898.5,1.46934652]
[1645183426161,1.9687658,2899.4,2899.0,0.00418227]
[1645183426377,2.9687658,2899.4,2899.0,0.00418227]
[1645183426763,1.9687658,2899.4,2899.0,0.00418227]
[1645183427064,1.0,2899.3,2898.4,3.77524517]
[1645183427261,1.9687658,2899.4,2899.1,0.00418224]
[1645183427521,6.94326535,2899.4,2899.1,0.00418224]
[1645183427718,0.1724,2899.3,2899.1,0.00418224]
[1645183427917,0.497,2899.2,2899.1,0.00418224]
[1645183428116,0.497,2899.2,2899.1,0.00338224]
[1645183428420,0.497,2899.2,2898.9,0.01730018]
[1645183428421,3.0,2899.1,2898.9,0.01730018]
[1645183428618,0.6694,2899.0,2898.9,0.01730018]
[1645183428822,1.6694,2899.0,2898.9,0.01730018]
[1645183429029,1.9694,2899.0,2897.6,6.4405]
[1645183429223,2.8895,2898.7,2897.7,1.46965472]
[1645183429426,2.8895,2898.7,2897.6,6.4405]
[1645183429427,1.497,2898.6,2897.6,6.4405]
[1645183429626,1.497,2898.6,2897.2,3.1011439]
[1645183429627,0.86329,2898.1,2897.2,3.1011439]
[1645183429823,0.86329,2898.1,2897.3,1.46980469]
[1645183430025,0.3,2898.0,2897.3,1.46980469]
[1645183430423,1.16329,2898.1,2897.3,1.46980469]
[1645183430625,0.3,2898.1,2897.3,1.46980469]
[1645183430827,1.4181887,2898.2,2897.3,1.46980469]
[1645183431028,0.497,2898.1,2897.5,0.00147076]
[1645183431465,1.497,2898.1,2897.5,0.00147076]
[1645183431672,0.497,2898.1,2897.5,0.00147076]
[1645183431865,0.497,2898.1,2897.3,1.76980469]
[1645183431866,1.497,2898.1,2897.3,1.76980469]
[1645183432165,0.497,2898.1,2897.7,0.00417927]
[1645183433067,0.497,2898.1,2897.2,0.0249439]
[1645183433266,0.497,2898.1,2897.8,0.00417922]
[1645183434276,0.497,2898.1,2897.7,0.02947714]
[1645183434474,0.497,2898.1,2897.8,0.00417919]
[1645183435418,0.497,2898.1,2897.7,0.02947714]
[1645183435618,0.01556418,2898.2,2897.7,0.02947714]
[1645183435814,0.01556418,2898.2,2897.8,0.00417919]
[1645183436214,0.01556418,2898.2,2897.9,0.86306]
[1645183436420,0.01556418,2898.2,2897.8,0.00417919]
[1645183436713,1.04809208,2898.2,2897.7,0.02947714]
[1645183437115,1.04809208,2898.2,2897.9,0.00417914]
[1645183437918,1.04809208,2898.2,2897.7,0.02947714]
[1645183437919,0.02520686,2898.1,2897.4,0.86319]
[1645183438118,0.02520686,2898.1,2897.9,0.00417914]
[1645183439166,0.02520686,2898.1,2897.4,0.3]
[1645183439366,0.02520686,2898.1,2897.9,0.00417916]
[1645183440367,0.02520686,2898.1,2897.5,0.3]
[1645183440368,0.02520686,2898.1,2897.5,3.8]
[1645183440570,0.02520686,2898.1,2897.9,0.00417916]
[1645183441566,0.02520686,2898.1,2897.9,0.3]
[1645183441768,0.02520686,2898.1,2897.9,0.30417916]
[1645183442619,0.01363506,2898.0,2897.9,0.3]
[1645183443020,0.01363506,2898.0,2897.9,0.30417916]
[1645183443826,0.01363506,2898.0,2897.9,0.3]
[1645183445226,0.03347006,2898.1,2897.9,0.3]
[1645183445431,0.1724,2898.9,2898.0,3.5]
[1645183445632,5.4585,2899.7,2898.2,0.0903256]
[1645183445828,4.2252,2899.7,2898.2,0.0903256]
[1645183446026,3.0804,2899.7,2898.3,1.4692917]
[1645183446272,0.1724,2899.8,2898.3,5.2692917]
[1645183446570,0.83764095,2899.6,2898.8,0.00417868]
[1645183447569,0.83764095,2899.6,2898.5,3.5]
[1645183447570,0.83764095,2899.6,2898.5,0.3]
[1645183447770,0.83764095,2899.6,2899.0,0.0041787]
[1645183448172,1.13764095,2899.6,2899.0,0.0041787]
[1645183448373,0.86287,2899.5,2899.0,0.0041787]
[1645183448775,1.86287,2899.5,2898.3,3.5]
[1645183448978,2.03527,2899.5,2899.0,0.00417875]
[1645183449278,2.89821,2899.5,2899.0,0.00417875]
[1645183449680,0.97822142,2899.1,2899.0,0.00417875]
[1645183449926,0.3,2899.6,2898.3,3.8]
[1645183450117,1.0,2899.5,2898.4,1.46918317]
[1645183450314,0.30417759,2899.8,2899.0,0.00417875]
[1645183450617,0.00417759,2899.8,2899.0,0.00417875]
[1645183450814,1.17849425,2899.4,2899.0,0.00417875]
[1645183451214,1.47849425,2899.4,2898.6,1.202]
[1645183451413,1.17849425,2899.4,2899.0,0.0041787]
[1645183451614,1.47849425,2899.4,2899.0,0.0041787]
[1645183451816,2.34140425,2899.4,2899.0,0.0041787]
[1645183452216,3.34140425,2899.4,2899.0,0.0041787]
[1645183452421,3.34140425,2899.4,2898.6,0.3]
[1645183452422,1.03957695,2898.9,2898.6,0.3]
[1645183452622,1.03957695,2898.9,2898.2,0.0903256]
[1645183452623,3.5,2898.8,2898.2,0.0903256]
[1645183452821,3.997,2898.8,2898.2,0.0903256]
[1645183453019,1.86312,2898.7,2898.2,0.0903256]
[1645183453217,1.497,2898.7,2898.2,0.0903256]
[1645183453416,0.497,2898.7,2898.2,0.0903256]
[1645183453670,0.447,2898.7,2898.2,0.0903256]
[1645183453874,0.93922874,2898.4,2898.3,0.00405355]
[1645183454675,0.93922874,2898.4,2898.2,0.0903256]
[1645183455179,0.93922874,2898.4,2898.2,0.09427522]
[1645183455577,0.447,2898.7,2898.2,0.09427522]
[1645183455978,0.447,2898.7,2898.2,0.0903256]
[1645183456177,0.447,2898.7,2898.3,0.00378713]
[1645183456574,1.19422735,2898.6,2898.3,0.00378713]
[1645183457176,1.19422735,2898.6,2898.2,1.2533056]
[1645183457415,1.19422735,2898.6,2898.3,0.00378713]
[1645183457822,1.19422735,2898.6,2898.3,0.06167053]
[1645183458419,1.19422735,2898.6,2898.3,0.0578834]
[1645183458619,1.19422735,2898.6,2898.3,0.06177451]
[1645183459625,1.19422735,2898.6,2898.3,0.0578834]
[1645183459827,1.19422735,2898.6,2898.3,0.06180177]
[1645183460826,1.19422735,2898.6,2898.3,0.0578834]
[1645183461024,1.1724,2898.9,2898.3,0.06180177]
[1645183461270,0.1724,2898.9,2898.3,0.92471177]
[1645183461468,0.1724,2898.9,2898.4,1.46930395]
[1645183461666,1.0,2899.2,2898.4,4.96930395]
[1645183461868,0.1724,2899.3,2898.5,1.46930395]
[1645183462066,0.1724,2899.3,2898.5,1.76930395]
[1645183462268,0.1724,2899.3,2898.5,0.30391829]
[1645183462566,0.1724,2899.3,2898.5,0.00391829]
[1645183463168,0.3,2899.4,2898.4,3.8596925]
[1645183463369,2.33525,2899.6,2898.8,0.00391069]
[1645183464172,0.86291,2899.4,2898.8,0.00391069]
[1645183464372,0.86291,2899.4,2898.4,0.3596925]
[1645183464373,1.72634,2899.3,2898.4,0.3596925]
[1645183464570,0.497,2899.2,2898.4,0.3596925]
[1645183464770,0.497,2899.2,2899.0,0.0039107]
[1645183464771,1.6601657,2899.2,2899.0,0.0039107]
[1645183465020,2.93296935,2899.2,2899.0,0.0031107]
[1645183465222,0.86713713,2899.1,2899.0,0.0031107]
[1645183465419,2.36413713,2899.1,2899.0,0.0031107]
[1645183465624,2.36413713,2899.1,2898.4,0.0596925]
[1645183466221,1.36413713,2899.1,2898.4,0.0596925]
[1645183466420,2.36413713,2899.1,2898.4,0.0596925]
[1645183466621,1.36413713,2899.1,2898.4,0.0596925]
[1645183466821,1.17074926,2898.6,2898.4,0.0596925]
[1645183467422,1.0,2899.0,2898.4,0.0596925]
[1645183467922,0.497,2899.1,2898.2,0.0903256]
[1645183468129,0.497,2899.1,2898.3,1.46935817]
[1645183468322,0.497,2899.1,2898.6,0.00120132]
[1645183468525,0.91972832,2899.0,2898.6,0.00120132]
[1645183468787,0.01199605,2899.2,2898.6,0.00120132]
[1645183469181,0.01199605,2899.2,2898.4,1.76923677]
[1645183469381,0.01199605,2899.2,2898.5,1.46923677]
[1645183469580,0.01199605,2899.2,2898.8,0.00391236]
[1645183469782,0.96495686,2899.1,2898.8,0.00391236]
[1645183470382,0.96495686,2899.1,2898.3,1.76927814]
[1645183470581,1.82795686,2899.1,2898.8,0.00400307]
[1645183470785,2.82795686,2899.1,2898.8,0.00400307]
[1645183471583,3.32495686,2899.1,2898.2,0.0903256]
[1645183471781,1.13578149,2898.5,2898.3,1.46938709]
[1645183472614,1.0,2898.9,2898.3,1.76938709]
[1645183472815,1.0,2899.0,2898.3,0.3]
[1645183473016,1.0,2899.0,2898.3,0.30400332]
[1645183473215,0.797,2899.1,2898.3,0.00400332]
[1645183473617,0.89766999,2898.6,2898.3,0.00400332]
[1645183473824,1.19766999,2898.6,2898.3,0.00400332]
[1645183474024,0.497,2898.5,2898.2,0.0903256]
[1645183474224,0.497,2898.5,2898.3,0.00390151]
[1645183475227,0.497,2898.5,2898.2,0.0903256]
[1645183475526,0.497,2899.0,2898.3,0.00390153]
[1645183475830,1.91190601,2899.0,2898.3,0.00390153]
[1645183476469,1.91190601,2899.0,2898.3,1.46943459]
[1645183476672,1.91190601,2899.0,2898.5,0.00390143]
[1645183477670,1.91190601,2899.0,2898.3,0.86294]
[1645183477874,1.91190601,2899.0,2898.6,0.00391329]
[1645183478274,2.77494601,2899.0,2898.6,0.00391329]
[1645183478681,6.0,2898.9,2898.6,0.00391329]
[1645183478880,6.0,2898.9,2898.2,0.0903256]
[1645183478881,0.6694,2898.8,2898.2,0.0903256]
[1645183479078,0.6694,2898.8,2898.7,0.00391327]
[1645183479280,1.53251,2898.8,2898.7,0.00391327]
[1645183480118,1.53251,2898.8,2898.2,0.0903256]
[1645183480319,1.53251,2898.8,2898.6,0.00391329]
[1645183481325,2.39567,2898.8,2898.2,0.0903256]
[1645183481521,1.02969887,2898.3,2898.2,0.0903256]
[1645183481719,1.82669887,2898.3,2898.2,0.0903256]
[1645183482220,1.52669887,2898.3,2898.2,0.0903256]
[1645183483520,0.497,2898.3,2898.2,0.0903256]
[1645183487917,0.497,2898.3,2898.2,0.15004861]
[1645183488118,0.497,2898.3,2898.2,0.14894718]
[1645183491872,1.23660671,2898.7,2898.2,0.14894718]
[1645183492267,0.497,2898.6,2898.2,0.14894718]
[1645183493266,0.01337087,2898.4,2898.2,0.1186675]
[1645183493468,0.01337087,2898.4,2898.3,0.00391192]
[1645183494474,0.01337087,2898.4,2898.2,0.1186675]
[1645183494669,0.01337087,2898.4,2898.2,0.12257944]
[1645183495616,0.01337087,2898.4,2898.2,0.1186675]
[1645183496017,0.01337087,2898.4,2898.2,0.12257945]
[1645183496619,0.87658087,2898.4,2898.2,0.12257945]
[1645183496820,0.87658087,2898.4,2898.2,0.1186675]
[1645183497219,0.87658087,2898.4,2898.2,0.12257945]
[1645183498018,0.01036438,2898.3,2898.2,0.0903256]
[1645183498418,0.01036438,2898.3,2898.2,0.09423755]
[1645183499301,0.01036438,2898.3,2898.2,0.0903256]
[1645183500801,0.01036438,2898.3,2898.2,1.55983717]
[1645183501202,0.01036438,2898.3,2898.2,0.0903256]
[1645183501404,0.01036438,2898.3,2898.2,1.55977073]
[1645183502827,0.02533515,2898.3,2898.2,1.55977073]
[1645183505631,0.02533515,2898.3,2898.2,5.05977073]
[1645183506035,0.02533515,2898.3,2898.2,1.55977073]
[1645183507888,0.02533515,2898.3,2898.2,5.05977073]
[1645183508187,0.02533515,2898.3,2898.2,1.55977073]
[1645183508390,0.0152132,2898.4,2898.2,5.05977073]
[1645183508589,0.0152132,2898.4,2898.3,1.46944513]
[1645183510029,0.0139051,2898.4,2898.3,4.96944513]
[1645183510422,0.0139051,2898.4,2898.3,1.46944513]
[1645183511025,0.0139051,2898.4,2898.3,4.96944513]
[1645183511824,0.0139051,2898.4,2898.3,1.46944513]
[1645183512824,0.00700233,2898.4,2898.3,1.46944513]
[1645183513022,0.636812,2898.7,2898.3,1.49261014]
[1645183513224,0.636812,2898.7,2898.4,1.76944513]
[1645183513425,0.636812,2898.7,2898.4,0.3]
[1645183513683,0.636812,2898.7,2898.3,1.18612501]
[1645183513890,0.636812,2898.7,2898.4,1.47353661]
[1645183514089,0.636812,2898.7,2898.4,0.00418297]
[1645183514691,0.636812,2898.7,2898.5,1.46934092]
[1645183514892,0.636812,2898.7,2898.5,0.3]
[1645183515090,0.636812,2898.7,2898.4,0.00418297]
[1645183516089,0.636812,2898.7,2898.3,0.02316501]
[1645183516289,0.636812,2898.7,2898.4,1.47354095]
[1645183516490,0.636812,2898.7,2898.5,1.46935798]
[1645183516791,0.636812,2898.7,2898.4,0.30418297]
[1645183517090,0.636812,2898.7,2898.5,1.46933597]
[1645183517421,0.636812,2898.7,2898.5,1.76933597]
[1645183517926,0.636812,2898.7,2898.4,0.00418297]
[1645183518121,0.636812,2898.7,2898.6,0.02251542]
[1645183523184,0.636812,2898.7,2898.5,0.04375328]
[1645183523581,0.636812,2898.7,2898.5,0.0479362]
[1645183524385,0.636812,2898.7,2898.5,0.04375328]
[1645183524785,0.636812,2898.7,2898.5,0.04793622]
[1645183525623,0.636812,2898.7,2898.5,0.04375328]
[1645183526023,0.636812,2898.7,2898.5,0.04793622]
[1645183526628,0.497,2898.6,2898.5,0.04793622]
[1645183526826,0.497,2898.6,2898.5,0.04375328]
[1645183526827,0.6694,2898.6,2898.5,0.04375328]
[1645183527225,0.6694,2898.6,2898.5,0.04793622]
[1645183528228,1.6694,2898.6,2898.2,0.0903256]
[1645183528435,0.86318,2898.5,2898.4,0.00418297]
[1645183528669,1.36018,2898.5,2898.4,0.00418297]
[1645183528874,1.797,2898.5,2898.4,0.00418297]
[1645183529274,0.497,2898.5,2898.2,0.0903256]
[1645183529477,1.01544806,2898.3,2898.2,0.0903256]
[1645183532922,1.04010685,2898.3,2898.2,0.0903256]
[1645183534324,0.02465879,2898.3,2898.2,0.0903256]
[1645183535125,0.02465879,2898.3,2898.2,0.08938903]
[1645183535525,0.86548381,2898.3,2898.2,0.08938903]
[1645183536571,0.02465879,2898.3,2898.2,0.08938903]
[1645183538471,0.02465879,2898.3,2898.2,1.55887553]
[1645183539075,0.02465879,2898.3,2898.2,1.52897158]
[1645183539923,0.02465879,2898.3,2898.2,0.05948508]
[1645183543124,1.1160195,2898.6,2898.2,0.05948508]
[1645183543424,2.6130195,2898.6,2898.2,0.05948508]
[1645183543695,2.7761795,2898.6,2898.2,0.05948508]
[1645183543898,1.0,2898.5,2898.2,0.05948508]
[1645183544104,1.0,2898.5,2898.3,0.00269903]
[1645183544799,1.0,2898.5,2898.2,0.05948508]
[1645183545202,1.0,2898.5,2898.3,0.00269903]
[1645183546100,1.0,2898.5,2898.2,0.05948508]
[1645183546302,1.0,2898.5,2898.3,0.00269903]
[1645183547203,1.0,2898.5,2898.2,0.05948508]
[1645183547622,1.0,2898.5,2898.3,0.00269903]
[1645183548019,1.0,2898.5,2898.4,0.04826812]
[1645183549528,0.75259634,2897.9,2897.7,1.72624]
[1645183549728,1.72639,2898.1,2897.8,1.46963411]
[1645183549729,1.72648,2898.0,2897.8,1.46963411]
[1645183550122,1.72639,2898.1,2897.8,1.46963411]
[1645183550123,2.02639,2898.1,2897.8,1.46963411]
[1645183551168,2.02639,2898.1,2897.8,1.47233337]
[1645183551370,0.86319,2898.0,2897.8,1.47233337]
[1645183551772,0.3,2897.9,2897.8,1.47233337]
[1645183552172,0.3,2897.9,2897.7,1.46963411]
[1645183552469,0.3,2897.9,2897.7,1.47233342]
[1645183552873,2.11319,2898.0,2897.7,1.54440851]
[1645183553070,2.11319,2898.0,2897.8,1.46963411]
[1645183553671,0.3,2897.9,2897.8,1.46963411]
[1645183555728,2.11319,2898.0,2897.8,1.46963411]
[1645183555926,0.3,2897.9,2897.8,1.46963411]
[1645183556925,2.11319,2898.0,2897.8,1.46963411]
[1645183558131,0.01361665,2897.9,2897.8,1.45013511]
[1645183558332,0.01361665,2897.9,2897.8,0.00269929]
[1645183559382,0.01361665,2897.9,2897.6,1.72634]
[1645183559579,0.01361665,2897.9,2897.7,0.00269931]
[1645183560592,0.01361665,2897.9,2897.6,1.72634]
[1645183560780,0.01361665,2897.9,2897.7,0.00269934]
[1645183561780,0.01361665,2897.9,2897.6,1.72634]
[1645183561982,0.01361665,2897.9,2897.7,0.00250461]
[1645183562821,0.01361665,2897.9,2897.6,1.72634]
[1645183563222,0.01361665,2897.9,2897.7,0.00250461]
[1645183564126,0.01361665,2897.9,2897.6,1.72634]
[1645183564327,0.01361665,2897.9,2897.7,0.00250461]
[1645183565326,0.01361665,2897.9,2897.6,1.72634]
[1645183565525,0.01361665,2897.9,2897.7,0.00250461]
[1645183565725,0.31361665,2897.9,2897.7,0.00250461]
[1645183565926,0.45174265,2897.9,2897.7,0.00250461]
[1645183566396,0.31361665,2897.9,2897.7,0.00250461]
[1645183566694,0.31361665,2897.9,2897.7,0.0025174]
[1645183567699,0.31361665,2897.9,2897.6,1.72634]
[1645183567895,0.31361665,2897.9,2897.7,0.0025174]
[1645183568902,0.31361665,2897.9,2897.6,1.72634]
[1645183569201,0.31361665,2897.9,2897.7,0.0025174]
[1645183569802,0.01361665,2897.9,2897.7,0.0025174]
[1645183570223,0.01361665,2897.9,2897.6,5.22634]
[1645183570420,0.2581081,2898.0,2897.9,0.02305287]
[1645183573222,0.25,2898.0,2897.9,0.02305287]
[1645183573686,0.809212,2898.7,2897.9,0.02305287]
[1645183573687,0.809212,2898.7,2898.1,0.8628143]
[1645183573884,0.138095,2898.6,2898.1,4.3628143]
[1645183574282,0.636812,2898.7,2898.0,0.86287]
[1645183575086,0.636812,2898.7,2898.1,0.8629]
[1645183575288,0.636812,2898.7,2898.2,0.00251639]
[1645183575493,1.636812,2898.7,2898.2,0.00251639]
[1645183576087,1.636812,2898.7,2898.1,0.8629]
[1645183576491,1.636812,2898.7,2898.2,23.69251643]
[1645183576693,0.636812,2898.7,2898.2,23.69251643]
[1645183576890,0.636812,2898.7,2898.3,2.02641153]
[1645183577088,0.636812,2898.7,2898.4,4.36278]
[1645183577289,0.636812,2898.7,2898.4,5.22555]
[1645183578323,0.636812,2898.7,2898.5,1.46920426]
[1645183579330,0.25,2899.0,2898.6,10.0]
[1645183579535,0.00753601,2899.4,2898.7,3.19472426]
[1645183579737,0.25,2899.7,2898.8,1.46920426]
[1645183579738,0.00502064,2899.6,2898.8,1.46920426]
[1645183580135,0.00251545,2899.4,2898.8,1.46920426]
[1645183580533,0.86529545,2899.4,2898.7,1.72552]
[1645183580739,0.3,2899.2,2899.0,0.86285]
[1645183583087,0.00502064,2899.3,2899.0,0.86285]
[1645183583292,0.00502064,2899.3,2899.1,6.69424547]
[1645183583486,0.00502064,2899.5,2899.1,1.72528]
[1645183583689,0.00251556,2899.4,2899.1,1.72528]
[1645183584286,0.0075362,2899.4,2899.1,1.72528]
[1645183584487,0.00502064,2899.4,2899.1,1.72528]
[1645183584928,0.00753624,2899.4,2899.1,1.72528]
[1645183585838,0.00502064,2899.4,2899.1,1.72528]
[1645183586035,0.00753624,2899.4,2899.1,1.72528]
[1645183586335,0.00753624,2899.4,2899.1,5.69608]
[1645183586536,0.00753624,2899.4,2899.2,1.64127978]
[1645183586733,0.00753624,2899.4,2899.2,0.1724]
[1645183586932,0.00753624,2899.4,2899.3,3.5]
[1645183586933,0.00502064,2899.4,2899.3,3.5]
[1645183587133,0.00251558,2899.4,2899.3,3.5]
[1645183587334,0.00251558,2899.4,2899.3,1.46884611]
[1645183587534,0.00251558,2899.4,2899.1,7.59341]
[1645183588036,0.00251558,2899.4,2899.2,1.46888338]
[1645183588037,0.0081839,2899.3,2899.2,1.46888338]
[1645183588234,0.0081839,2899.3,2899.2,4.96888338]
[1645183589685,0.0081839,2899.3,2899.2,1.46886262]
[1645183589886,0.0081839,2899.3,2899.2,3.5]
[1645183590084,0.0081839,2899.3,2899.1,1.89768]
[1645183590284,0.0081839,2899.3,2899.1,1.72528]
[1645183591189,0.01320454,2899.3,2899.1,1.72528]
[1645183591585,0.0081839,2899.3,2899.1,1.72528]
[1645183594432,0.0081839,2899.3,2899.1,5.22528]
[1645183595032,0.0081839,2899.3,2899.1,1.72528]
[1645183595633,0.0081839,2899.3,2899.1,2.19608]
[1645183596035,0.0081839,2899.3,2899.2,3.5]
[1645183596275,0.01379567,2899.4,2899.3,0.0137821]
[1645183596481,0.0112801,2899.4,2899.3,0.0137821]
[1645183596874,0.01379569,2899.4,2899.3,0.0137821]
[1645183597677,0.0112801,2899.4,2899.3,0.0137821]
[1645183597877,0.01412701,2899.4,2899.3,0.0137821]
[1645183603431,0.00733665,2899.5,2899.3,0.0137821]
[1645183603673,0.00502064,2899.5,2899.3,0.0137821]
[1645183604075,0.00733663,2899.5,2899.3,0.0137821]
[1645183604876,0.00502064,2899.5,2899.3,0.0137821]
[1645183605277,0.00733663,2899.5,2899.3,0.0137821]
[1645183606096,0.00502064,2899.5,2899.3,0.0137821]
[1645183606279,0.30502064,2899.7,2899.3,0.0137821]
[1645183606478,0.00233566,2899.5,2899.3,0.0137821]
[1645183607279,0.30502064,2899.7,2899.3,0.0137821]
[1645183607525,0.00233566,2899.5,2899.3,0.0137821]
[1645183607925,0.00233566,2899.5,2899.4,0.05068086]
[1645183608528,0.30502064,2899.7,2899.4,0.05068086]
[1645183608729,0.00233564,2899.6,2899.5,0.86264]
[1645183608931,0.00233564,2899.6,2899.4,1.77595086]
[1645183609128,0.14039764,2899.6,2899.4,1.77595086]
[1645183609329,0.00233564,2899.6,2899.4,1.77595086]
[1645183609732,0.30502064,2899.7,2899.4,1.77595086]
[1645183609931,0.00233367,2899.6,2899.4,1.77595086]
[1645183610932,0.00502064,2899.7,2899.4,1.77595086]
[1645183611180,0.00233367,2899.6,2899.4,1.77595086]
[1645183612190,0.00502064,2899.7,2899.4,1.77595086]
[1645183612191,1.16773064,2899.7,2899.4,1.77595086]
[1645183612386,0.00233367,2899.6,2899.4,1.77595086]
[1645183612585,0.00735431,2899.6,2899.4,1.77595086]
[1645183612785,0.00233367,2899.6,2899.4,1.77595086]
[1645183612985,0.00233367,2899.6,2899.5,0.02634428]
[1645183613186,0.85048153,2899.7,2899.5,0.02634428]
[1645183613587,0.85281541,2899.7,2899.5,0.02634428]
[1645183614589,0.85048153,2899.7,2899.5,0.02634428]
[1645183616826,0.98854053,2899.7,2899.5,0.02634428]
[1645183617022,0.85048153,2899.7,2899.5,0.02634428]
[1645183617224,0.85317968,2899.7,2899.5,0.02634428]
[1645183618228,0.86972969,2899.7,2899.4,1.72527]
[1645183618425,0.87242784,2899.7,2899.4,1.72527]
[1645183619284,0.86972969,2899.7,2899.4,1.72527]
[1645183619682,0.87242782,2899.7,2899.4,1.72527]
[1645183619989,0.3,2899.6,2899.4,1.72527]
[1645183620384,0.02696693,2899.7,2899.4,1.72527]
[1645183620583,0.15731016,2899.7,2899.4,1.72527]
[1645183620780,0.16000827,2899.7,2899.4,1.72527]
[1645183620983,0.02194627,2899.7,2899.4,1.72527]
[1645183621882,0.01924816,2899.7,2899.4,1.72527]
[1645183622083,0.02174858,2899.7,2899.4,1.72527]
[1645183622921,0.02202324,2899.7,2899.4,1.72527]
[1645183623323,0.02452366,2899.7,2899.4,1.72527]
[1645183623931,0.25,2899.9,2899.5,25.15869393]
[1645183624130,0.25,2899.9,2899.6,1.46869393]
[1645183624329,0.25,2899.9,2899.6,3.19356393]
[1645183624534,0.25,2899.9,2899.6,1.72487]
[1645183626176,1.11264,2899.9,2899.6,1.72487]
[1645183626685,1.11264,2899.9,2899.4,0.86271]
[1645183626686,1.72547,2899.8,2899.4,0.86271]
[1645183626884,0.3,2899.7,2899.4,0.86271]
[1645183627081,0.25269807,2899.9,2899.5,1.46880982]
[1645183627280,0.25269807,2899.9,2899.4,0.86271]
[1645183627478,0.25269807,2899.9,2899.5,1.46880032]
[1645183627686,0.25,2899.9,2899.5,2.33133032]
[1645183627879,0.25,2899.9,2899.5,0.86253]
[1645183628084,0.00269808,2899.8,2899.5,0.86253]
[1645183628982,0.26916046,2899.9,2899.5,0.86253]
[1645183629383,0.00269808,2899.8,2899.5,0.86253]
[1645183630237,1.13179046,2899.9,2899.5,0.86253]
[1645183630430,0.00269808,2899.8,2899.5,0.86253]
[1645183631232,0.00269808,2899.8,2899.6,1.46875694]
[1645183631434,0.26916046,2899.9,2899.5,0.86253]
[1645183631635,0.00269808,2899.8,2899.5,0.86253]
[1645183632634,0.26916046,2899.9,2899.5,0.86253]
[1645183632838,0.00269808,2899.8,2899.5,0.86253]
[1645183633234,0.00269808,2899.8,2899.7,0.02412125]
[1645183633674,1.11261,2899.9,2899.7,0.02412125]
[1645183633879,0.25,2899.9,2899.7,0.02412125]
[1645183634179,0.25269807,2899.9,2899.7,0.02412125]
[1645183634983,0.25,2899.9,2899.7,0.02412125]
[1645183635204,0.25269805,2899.9,2899.7,0.02412125]
[1645183636079,0.25,2899.9,2899.7,0.02412125]
[1645183636478,0.25269805,2899.9,2899.7,0.02412125]
[1645183637281,0.25,2899.9,2899.7,0.02412125]
[1645183637525,0.25269805,2899.9,2899.7,0.02412125]
[1645183637929,0.00269805,2899.9,2899.7,0.02412125]
[1645183638324,0.00269805,2899.9,2899.8,0.02382382]
[1645183638529,2.96762401,2900.5,2899.8,0.02382382]
[1645183638530,1.86245,2900.5,2899.8,0.02382382]
[1645183638727,1.86245,2900.5,2899.9,0.86245]
[1645183638930,0.00499554,2900.4,2899.9,0.86245]
[1645183639530,1.18488873,2900.4,2899.9,0.86245]
[1645183639930,2.18488873,2900.4,2899.9,0.86245]
[1645183640233,0.86519787,2900.3,2899.9,0.86245]
[1645183640435,0.00499554,2900.2,2899.9,0.86245]
[1645183641318,0.00269792,2900.2,2899.9,0.86245]
[1645183642116,0.00499554,2900.5,2900.0,1.46850006]
[1645183642316,0.00499554,2900.5,2900.0,3.19336006]
[1645183642516,0.00269792,2900.2,2900.0,1.72486]
[1645183643120,0.00269792,2900.2,2900.1,0.04791112]
[1645183643317,0.00499554,2900.5,2900.1,0.04791112]
[1645183643517,0.00499554,2900.5,2900.2,0.86237]
[1645183644524,0.00499554,2900.5,2900.2,0.84767]
[1645183644726,0.00499554,2900.5,2900.2,22.3706441]
[1645183644932,0.00269776,2900.5,2900.3,0.1723]
[1645183645531,0.00269776,2900.5,2900.3,2.1837]
[1645183645735,0.00269776,2900.5,2900.3,1.3215]
[1645183645929,0.00499554,2901.3,2900.5,0.86222]
[1645183646133,0.00485917,2901.0,2900.5,0.86222]
[1645183646931,0.00499554,2901.3,2900.5,0.86222]
[1645183647132,0.88311733,2901.3,2900.5,0.86222]
[1645183647331,0.00121497,2900.9,2900.5,0.86222]
[1645183648136,0.00499554,2901.3,2900.5,0.86222]
[1645183648337,0.00121386,2900.8,2900.5,0.86222]
[1645183649384,1.86721554,2901.3,2900.5,0.86222]
[1645183649586,0.00117228,2900.8,2900.5,0.86222]
[1645183650585,3.23926433,2901.3,2900.5,0.86222]
[1645183650785,0.00117228,2900.8,2900.5,0.86222]
[1645183651785,1.000293,2901.1,2900.5,0.86222]
[1645183651987,0.00266001,2900.8,2900.5,0.86222]
[1645183653029,1.16734554,2901.0,2900.5,0.86222]
[1645183653231,0.30270159,2900.8,2900.5,0.86222]
[1645183653430,0.30769713,2900.8,2900.5,0.86222]
[1645183653634,0.55769713,2900.8,2900.5,0.86222]
[1645183654234,0.55499554,2900.8,2900.5,0.86222]
[1645183654435,0.55769713,2900.8,2900.5,0.86222]
[1645183654838,0.25769713,2900.8,2900.5,0.86222]
[1645183655042,0.00769713,2900.8,2900.5,0.86222]
[1645183655236,0.00270159,2900.8,2900.5,0.86222]
[1645183655435,0.00680085,2901.2,2900.5,0.86222]
[1645183655838,0.00270159,2900.8,2900.5,0.86222]
[1645183656678,0.00499554,2901.0,2900.5,0.86222]
[1645183656877,0.00270159,2900.8,2900.5,0.86222]
[1645183657777,0.00499554,2901.0,2900.5,0.86222]
[1645183657977,0.00270159,2900.8,2900.5,0.86222]
[1645183658179,0.01249116,2900.7,2900.5,0.86222]
[1645183659383,0.01519277,2900.7,2900.5,0.86222]
[1645183660027,0.02018831,2900.7,2900.5,0.86222]
[1645183660226,0.01249116,2900.7,2900.5,0.86222]
[1645183660427,0.02018831,2900.7,2900.5,0.86222]
[1645183661025,0.01519277,2900.7,2900.5,0.86222]
[1645183661430,0.01249116,2900.7,2900.5,0.86222]
[1645183661626,0.01519277,2900.7,2900.5,0.86222]
[1645183662727,0.01249116,2900.7,2900.5,0.86222]
[1645183662927,0.01519277,2900.7,2900.5,0.86222]